[Event "Rapide Futuroscope"]
[Site "Futuroscope, France"]
[Date "2019.12.01"]
[Round "7.4"]
[White "Fournier, Loic"]
[Black "Pottier, Simeon"]
[Result "1-0"]
[TimeControl "15' + 3''"]
[WhiteElo "2150"]
[BlackElo "2205"]

1. d4 {[%clk 00:15:05]} Nf6 {[%clk 00:15:05]} 2. Nf3 {[%clk 00:15:04]} {[%emt
00:00:04]} c5 {[%clk 00:15:08]} 3. c3 {[%clk 00:15:05]} {[%emt 00:00:02]} g6
{[%clk 00:15:09]} {[%emt 00:00:04]} 4. Bf4 {[%clk 00:15:07]} b6 {[%emt
00:00:03]} 5. e3 {[%clk 00:15:09]} Bg7 {[%clk 00:15:10]} {[%emt 00:00:03]} 6.
Be2 {[%clk 00:15:11]} O-O {[%clk 00:15:10]} {[%emt 00:00:02]} 7. O-O {[%clk
00:15:12]} {[%emt 00:00:02]} Bb7 {[%clk 00:15:10]} {[%emt 00:00:03]} 8. Nbd2
{[%clk 00:15:12]} {[%emt 00:00:03]} d6 {[%clk 00:15:12]} {[%emt 00:00:03]} 9.
h3 {[%clk 00:15:13]} Nbd7 {[%clk 00:15:09]} {[%emt 00:00:06]} 10. a4 {[%clk
00:15:10]} {[%emt 00:00:07]} a6 {[%clk 00:15:11]} 11. Rc1 {[%clk 00:14:44]}
{[%emt 00:00:28]} Rc8 {[%clk 00:14:45]} {[%emt 00:00:29]} 12. Bh2 {[%clk
00:14:45]} {[%emt 00:00:02]} Rc7 {[%clk 00:14:28]} {[%emt 00:00:20]} 13. Qb3
{[%clk 00:13:37]} {[%emt 00:01:11]} Qa8 {[%clk 00:13:49]} {[%emt 00:00:42]} 14.
Rfe1 {[%clk 00:13:02]} {[%emt 00:00:38]} Ne4 {[%clk 00:13:34]} {[%emt
00:00:18]} 15. Bf1 {[%clk 00:12:38]} {[%emt 00:00:27]} Rb8 {[%clk 00:09:18]}
{[%emt 00:04:19]} 16. Nxe4 {[%clk 00:08:27]} {[%emt 00:04:14]} Bxe4 {[%clk
00:09:14]} {[%emt 00:00:06]} 17. Ng5 {[%clk 00:07:47]} {[%emt 00:00:42]} Qd5
{[%clk 00:07:04]} {[%emt 00:02:14]} 18. Qxd5 {[%clk 00:07:35]} {[%emt
00:00:16]} Bxd5 {[%clk 00:07:06]} {[%emt 00:00:01]} 19. Bxa6 {[%clk 00:07:30]}
{[%emt 00:00:08]} Ra8 {[%clk 00:06:13]} {[%emt 00:00:56]} 20. Bb5 {[%clk
00:07:32]} Bb3 {[%clk 00:06:12]} {[%emt 00:00:03]} 21. Ra1 {[%clk 00:06:46]}
{[%emt 00:00:49]} Nf6 {[%clk 00:02:47]} {[%emt 00:03:28]} 22. Ra3 {[%clk
00:05:31]} {[%emt 00:01:17]} c4 {[%clk 00:02:43]} {[%emt 00:00:07]} 23. e4
{[%clk 00:05:09]} {[%emt 00:00:25]} Rca7 {[%clk 00:02:16]} {[%emt 00:00:30]} 24.
Nf3 {[%clk 00:04:42]} {[%emt 00:00:30]} d5 {[%clk 00:01:38]} {[%emt 00:00:42]}
25. exd5 {[%clk 00:04:21]} {[%emt 00:00:23]} Nxd5 {[%clk 00:01:31]} {[%emt
00:00:10]} 26. Bc6 {[%clk 00:04:21]} {[%emt 00:00:04]} Rd8 {[%clk 00:01:33]}
{[%emt 00:00:01]} 27. Nd2 {[%clk 00:04:01]} {[%emt 00:00:22]} e6 {[%clk
00:00:11]} {[%emt 00:01:25]} 28. Nxb3 {[%clk 00:04:00]} {[%emt 00:00:04]} cxb3
{[%clk 00:00:13]} {[%emt 00:00:01]} 29. Rxb3 {[%emt 00:00:14]} 1-0